bitfinex/quotes_ETHUSD_20241109
["timestamp","ask_amount","ask_price","bid_price","bid_amount"]
[1731149401385,1.02807998,3045.0,3044.1,0.7662]
[1731149401698,0.55,3044.9,3044.1,0.7662]
[1731149401984,0.55,3044.7,3044.1,0.7662]
[1731149402217,1.28041645,3044.7,3044.1,0.7662]
[1731149402554,2.30849643,3044.7,3044.1,0.7662]
[1731149403291,4.02807998,3044.6,3044.1,0.7662]
[1731149403481,0.55,3044.5,3044.1,0.7662]
[1731149404603,1.02807998,3044.4,3043.2,0.7662]
[1731149404758,0.55,3044.3,3043.2,0.7662]
[1731149404963,4.57807998,3044.3,3043.2,0.7662]
[1731149405564,1.57807998,3044.3,3043.2,0.7662]
[1731149406472,3.0,3044.2,3043.2,0.7662]
[1731149406677,1.02807998,3044.1,3043.2,0.7662]
[1731149406897,4.56802181,3044.0,3043.2,0.7662]
[1731149407116,4.02807998,3043.9,3043.2,0.7662]
[1731149407570,0.55,3043.9,3043.2,0.7662]
[1731149407963,1.57807998,3043.9,3043.2,0.7662]
[1731149408563,0.55,3043.9,3043.2,0.7662]
[1731149409378,1.19893601,3043.9,3043.2,0.7662]
[1731149411677,5.22701599,3043.9,3043.2,0.7662]
[1731149412208,1.19893601,3043.9,3043.2,0.7662]
[1731149414698,0.55,3043.9,3043.2,0.7662]
[1731149414868,0.55,3044.0,3043.2,0.7662]
[1731149415387,0.55,3044.1,3043.2,0.7662]
[1731149415769,1.57807998,3044.1,3043.2,0.7662]
[1731149417098,0.55,3044.1,3043.2,0.7662]
[1731149417302,2.44563026,3044.1,3043.2,0.7662]
[1731149417467,1.41755028,3044.1,3043.2,0.7662]
[1731149417673,1.02807998,3044.2,3043.2,0.7662]
[1731149417978,1.71361554,3044.5,3043.2,0.7662]
[1731149417979,1.02807998,3044.3,3043.2,0.7662]
[1731149418287,1.02807998,3044.4,3043.2,0.7662]
[1731149418470,1.57807998,3044.3,3043.2,0.7662]
[1731149419571,0.55,3044.3,3043.2,0.7662]
[1731149419815,1.57807998,3044.3,3043.2,0.7662]
[1731149420110,0.55,3044.3,3043.2,0.7662]
[1731149420273,1.57807998,3044.3,3043.2,0.7662]
[1731149421225,0.55,3044.3,3043.2,0.7662]
[1731149421367,2.83675673,3044.3,3043.2,0.7662]
[1731149421566,3.0,3044.2,3043.2,0.7662]
[1731149421808,1.02807998,3044.4,3043.4,0.7722]
[1731149421982,1.25867675,3044.3,3043.4,0.7722]
[1731149424690,0.55,3044.4,3043.4,0.7722]
[1731149426831,1.37063811,3044.7,3043.9,1.25867675]
[1731149426977,1.02797858,3044.6,3044.0,0.8236]
[1731149427177,1.02797858,3044.6,3044.2,0.8236]
[1731149427412,0.90788779,3044.6,3044.2,0.8236]
[1731149427819,1.37063811,3044.7,3044.2,0.8236]
[1731149429423,3.0,3044.6,3044.2,0.8236]
[1731149429621,0.3,3044.6,3044.2,0.8236]
[1731149430523,3.55,3045.1,3044.2,0.8236]
[1731149431322,3.0,3045.1,3044.2,0.8236]
[1731149431526,3.009408,3045.4,3044.2,0.8236]
[1731149432005,1.37080527,3045.3,3044.2,0.8236]
[1731149432997,0.55,3045.2,3044.2,0.8236]
[1731149433195,0.19208053,3045.1,3044.2,0.8236]
[1731149436049,0.55,3045.2,3044.2,0.8236]
[1731149436426,0.55,3045.2,3044.3,0.06760019]
[1731149436612,0.55,3045.2,3044.4,0.8236]
[1731149437054,1.57796866,3045.3,3044.4,0.8236]
[1731149437252,1.62378685,3045.2,3044.4,0.8236]
[1731149437560,4.62378685,3045.2,3044.4,0.8236]
[1731149437962,1.62378685,3045.2,3044.4,0.8236]
[1731149438247,4.62378685,3045.2,3044.4,0.8236]
[1731149438461,1.62378685,3045.2,3044.4,0.8236]
[1731149438618,4.57796866,3045.3,3044.4,0.8236]
[1731149438813,1.03737666,3045.4,3044.4,0.8236]
[1731149439022,0.009408,3045.4,3044.5,0.0674799]
[1731149439256,0.009408,3045.4,3044.6,0.8236]
[1731149439617,0.009408,3045.4,3044.7,0.06738065]
[1731149439820,0.009408,3045.4,3044.8,0.8236]
[1731149440030,0.009408,3045.4,3044.8,0.89093264]
[1731149443157,0.009408,3045.4,3044.8,0.8236]
[1731149443356,0.009408,3045.4,3045.0,0.8236]
[1731149450866,3.7639,3045.2,3043.7,3.7679939]
[1731149451023,2.72650135,3045.3,3041.4,3.98396833]
[1731149451024,0.01,3042.9,3042.5,0.34290697]
[1731149451365,3.456,3043.9,3042.0,0.7662]
[1731149451366,0.55,3043.3,3042.0,2.02551492]
[1731149451523,0.56,3043.6,3042.3,1.25931492]
[1731149451730,0.56,3043.6,3042.5,0.7662]
[1731149452032,1.25931492,3043.4,3042.5,0.7662]
[1731149452226,1.25931492,3043.1,3042.5,0.7662]
[1731149452419,1.25931492,3042.8,3042.5,0.7662]
[1731149452624,1.25931492,3042.8,3042.1,0.7662]
[1731149452929,1.25931492,3042.8,3042.2,0.0391622]
[1731149453076,1.25931492,3042.5,3042.2,0.0391622]
[1731149453273,0.55,3042.4,3042.2,0.0391622]
[1731149453436,5.91177958,3042.3,3041.7,0.7662]
[1731149453632,3.0,3042.2,3041.7,0.7662]
[1731149453874,0.55,3042.1,3040.8,0.7662]
[1731149454243,0.55,3042.1,3040.9,0.03848852]
[1731149454672,3.0,3042.2,3040.9,0.03848852]
[1731149455348,3.59217796,3042.2,3040.9,0.03848852]
[1731149455673,2.73084809,3042.0,3040.9,0.03848852]
[1731149456085,3.0,3041.9,3040.8,0.7662]
[1731149458043,3.0,3041.9,3040.9,0.03349727]
[1731149462899,3.0,3041.9,3040.8,0.7662]
[1731149463189,3.70447481,3041.9,3040.8,0.7662]
[1731149464044,3.70447481,3041.9,3040.3,0.1400828]
[1731149464045,2.73084809,3041.3,3040.3,0.1400828]
[1731149464271,3.0,3041.2,3040.3,0.1400828]
[1731149464700,3.0,3041.2,3040.4,0.03319609]
[1731149466205,3.57308481,3041.2,3040.4,0.03319609]
[1731149467501,0.8078,3041.1,3040.4,0.03319609]
[1731149467704,0.8078,3041.1,3040.3,0.1400828]
[1731149468089,0.8078,3041.1,3040.4,0.0333274]
[1731149468499,0.8078,3041.1,3040.3,0.1400828]
[1731149470271,1.51897329,3041.1,3040.3,0.1400828]
[1731149474496,0.8078,3041.1,3040.3,0.1400828]
[1731149475480,0.8178,3041.8,3040.5,0.8007]
[1731149475743,1.40997796,3042.2,3040.7,0.8007]
[1731149475896,1.40997796,3042.2,3040.8,0.06575649]
[1731149475897,0.01,3042.0,3040.8,0.06575649]
[1731149476099,0.01,3042.0,3040.7,0.8007]
[1731149476419,0.8178,3042.2,3040.8,0.86645498]
[1731149476721,0.35486481,3042.1,3041.0,0.8007]
[1731149476916,0.7662,3042.8,3041.2,0.01]
[1731149477121,0.69153579,3043.4,3042.0,0.8007]
[1731149477122,0.05703091,3043.4,3042.0,0.8007]
[1731149477327,2.73084809,3044.4,3042.0,0.8007]
[1731149477328,2.73084809,3043.2,3042.0,0.8007]
[1731149477939,0.8178,3043.3,3042.0,0.8007]
[1731149478121,0.8078,3043.3,3042.0,0.8007]
[1731149478332,0.01,3043.5,3042.1,0.06572635]
[1731149478656,0.01,3043.5,3042.2,0.8007]
[1731149479260,0.8178,3043.7,3042.2,0.8007]
[1731149479603,0.8178,3043.7,3042.3,0.86642213]
[1731149479798,0.8178,3043.7,3042.3,0.8007]
[1731149480100,0.01,3043.9,3042.5,0.8007]
[1731149481333,0.36486481,3043.9,3042.5,0.8007]
[1731149481645,0.35486481,3043.9,3042.7,0.8007]
[1731149481856,0.01,3044.1,3042.8,0.0657116]
[1731149482131,0.01,3044.1,3042.7,0.8007]
[1731149482132,2.74084809,3044.1,3042.7,0.8007]
[1731149482632,0.01,3044.0,3042.7,0.8007]
[1731149482938,3.01,3044.0,3042.7,0.8007]
[1731149483184,3.0,3044.0,3042.7,0.8007]
[1731149483470,3.58408481,3044.0,3042.7,0.8007]
[1731149484373,3.57408481,3044.0,3042.7,0.8007]
[1731149484932,3.58408481,3044.0,3042.7,0.8007]
[1731149485862,0.01,3043.7,3042.7,0.8007]
[1731149486244,3.56,3043.7,3042.7,0.8007]
[1731149486442,1.41568481,3043.6,3042.7,0.8007]
[1731149496492,0.7866,3043.6,3042.7,0.8007]
[1731149500225,0.56,3043.7,3042.7,0.8007]
[1731149500386,0.01,3043.9,3042.8,0.8431204]
[1731149500587,0.01,3044.4,3042.9,0.7774]
[1731149500787,0.01,3044.6,3043.2,0.7774]
[1731149501028,0.01,3044.8,3043.2,0.7774]
[1731149501227,0.01,3044.6,3043.2,0.7774]
[1731149501728,2.73084809,3044.8,3043.2,0.7774]
[1731149501729,2.74084809,3044.8,3043.2,0.7774]
[1731149501915,0.01,3044.6,3043.2,0.7774]
[1731149502117,0.01,3044.6,3043.4,0.7774]
[1731149504427,2.73084809,3044.5,3043.4,0.7774]
[1731149504630,3.0,3044.4,3043.4,0.7774]
[1731149506619,1.3466,3044.6,3043.5,0.06570565]
[1731149506814,1.3466,3044.6,3042.8,2.73084809]
[1731149506815,0.01,3044.6,3043.6,0.7616]
[1731149507961,0.01,3044.8,3043.6,0.7616]
[1731149508121,0.01,3044.8,3043.7,0.82729855]
[1731149508454,0.01,3044.8,3043.7,0.7616]
[1731149514355,3.01,3045.0,3043.7,0.7616]
[1731149514636,3.01,3045.0,3043.9,0.7616]
[1731149514945,3.01,3045.0,3043.4,2.73084809]
[1731149514946,0.01,3045.2,3044.1,0.7616]
[1731149515133,0.01,3045.2,3044.0,0.0656912]
[1731149515134,0.01,3045.2,3044.3,0.7616]
[1731149517361,0.569408,3045.4,3044.3,0.7616]
[1731149517562,0.009408,3045.4,3044.4,0.85228627]
[1731149518175,0.009408,3045.4,3044.4,0.7866]
[1731149518347,0.009408,3045.4,3044.6,0.7866]
[1731149518533,0.009408,3045.4,3044.8,0.7866]
[1731149519543,0.3663488,3045.4,3044.8,0.7866]
[1731149521057,0.009408,3045.4,3044.8,0.7866]
[1731149529526,3.55,3045.0,3044.5,0.7715]
[1731149532469,3.0,3045.0,3044.5,0.7715]
[1731149532776,0.56,3045.2,3044.5,0.7715]
[1731149532939,1.3328852,3045.2,3044.5,0.7715]
[1731149535560,0.7828852,3045.2,3044.5,0.7715]
[1731149537528,0.019408,3045.4,3044.5,0.7715]
[1731149537837,0.009408,3045.4,3044.5,0.7715]
[1731149540869,2.74025609,3045.4,3044.5,0.7715]
[1731149541068,3.0,3045.3,3044.5,0.7715]
[1731149541275,3.65165561,3045.3,3044.5,0.7715]
[1731149543966,0.65165561,3045.3,3044.5,0.7715]
[1731149544472,0.009408,3045.4,3044.5,0.7715]
[1731149546444,0.009408,3045.4,3044.7,0.7952]
[1731149546646,0.009408,3045.4,3044.9,0.7952]
[1731149546851,0.009408,3045.4,3045.1,0.7952]
[1731149554275,0.009408,3045.4,3044.1,0.7952]
[1731149554498,0.009408,3045.4,3044.1,0.57308481]
[1731149554701,0.009408,3045.4,3044.2,0.7952]
[1731149555207,0.009408,3045.4,3044.7,0.7952]
[1731149556503,0.009408,3045.4,3044.7,0.86086716]
[1731149556671,0.009408,3045.4,3044.7,0.7952]
[1731149559886,0.68122094,3046.4,3045.4,0.7952]
[1731149560075,0.68122094,3046.9,3045.6,0.7952]
[1731149560279,0.68122094,3047.0,3045.8,0.7952]
[1731149560705,0.69122094,3047.1,3045.8,0.7952]
[1731149560970,0.69122094,3047.1,3046.0,0.7952]
[1731149561188,0.01,3046.9,3046.0,0.7952]
[1731149562380,0.68122094,3047.1,3046.0,0.7952]
[1731149562583,0.69122094,3047.8,3046.5,0.7952]
[1731149562816,0.86252618,3047.8,3046.7,0.7952]
[1731149563114,0.01,3047.8,3046.7,0.7952]
[1731149563522,0.01,3047.8,3046.9,0.7952]
[1731149563673,0.01,3047.9,3046.9,0.7952]
[1731149564774,0.69122094,3048.1,3047.0,0.06563377]
[1731149564975,0.01,3048.1,3047.1,0.7952]
[1731149565749,0.01,3048.3,3047.1,0.7952]
[1731149568309,0.58408481,3048.3,3047.1,0.7952]
[1731149569118,2.73084809,3048.2,3047.1,0.7952]
[1731149569288,3.01,3048.1,3047.1,0.7952]
[1731149569700,0.7858,3048.0,3047.1,0.7952]
[1731149570029,3.01,3047.8,3047.1,0.7952]
[1731149570185,3.66266481,3047.8,3047.1,0.7952]
[1731149571929,0.01,3048.5,3047.1,0.7952]
[1731149572223,0.01,3048.5,3047.2,0.8291]
[1731149573919,0.01,3048.7,3047.2,0.8291]
[1731149574097,0.01,3048.5,3047.2,0.8291]
[1731149574295,0.01,3048.5,3047.3,0.8291]
[1731149574499,0.01,3048.5,3047.5,0.8291]
[1731149577020,3.27926,3049.5,3046.9,2.73084809]
[1731149577021,2.73084809,3049.8,3048.1,0.8291]
[1731149578023,2.73084809,3049.8,3048.2,0.0655997]
[1731149578323,2.73084809,3049.8,3048.0,2.73084809]
[1731149578324,3.51664809,3050.6,3048.7,0.8291]
[1731149578528,3.51664809,3050.6,3048.6,2.73084809]
[1731149578529,3.51664809,3050.6,3048.9,0.8291]
[1731149578726,0.65424973,3050.2,3048.9,0.8291]
[1731149579021,0.7858,3050.6,3048.9,0.8291]
[1731149579702,0.64526494,3050.5,3048.9,0.8291]
[1731149580211,0.7858,3050.6,3048.9,0.8291]
[1731149580416,0.35166481,3050.5,3048.9,0.8291]
[1731149580586,0.55,3050.4,3049.0,0.8291]
[1731149580928,0.35166481,3050.5,3049.0,0.8291]
[1731149581143,0.32309957,3051.5,3048.8,0.35599481]
[1731149581144,0.05701568,3051.9,3050.4,0.8291]
[1731149581344,0.1400828,3052.5,3050.9,0.8291]
[1731149581929,0.1400828,3052.5,3051.6,0.8291]
[1731149584033,0.1400828,3052.5,3051.7,0.0655231]
[1731149584389,0.1400828,3052.5,3051.8,0.8291]
[1731149584606,0.1400828,3052.5,3052.0,0.8291]
[1731149584808,0.1400828,3052.5,3052.1,0.89461742]
[1731149585205,0.06696535,3054.5,3052.1,3.33820283]
[1731149585408,0.65245085,3053.6,3052.3,0.8291]
[1731149586334,0.65245085,3053.6,3052.4,0.06549813]
[1731149586506,0.65245085,3053.6,3052.5,0.77]
[1731149586841,4.10570283,3054.6,3052.5,0.77]
[1731149587045,0.63915424,3053.7,3052.7,0.55]
[1731149587251,0.63915424,3053.7,3052.6,0.84549401]
[1731149587252,3.34820283,3055.0,3052.8,0.77]
[1731149587536,0.44422,3054.9,3052.8,0.77]
[1731149587744,3.33820283,3054.6,3053.0,0.77]
[1731149588325,3.0,3054.5,3053.0,0.77]
[1731149589568,0.65710139,3053.9,3053.0,0.77]
[1731149592374,0.55,3053.6,3051.9,0.77]
[1731149592581,0.55,3053.4,3051.9,0.9780099]
[1731149592744,0.55,3053.4,3051.9,0.77]
[1731149593288,3.0,3053.3,3051.9,0.77]
[1731149593653,0.55,3053.2,3051.9,0.77]
[1731149594942,3.0,3053.3,3051.9,0.77]
[1731149595366,0.55,3053.2,3051.9,0.77]
[1731149595686,0.355,3053.1,3051.9,0.77]
[1731149597091,0.55,3053.4,3051.9,0.77]
[1731149598449,3.88820283,3053.4,3051.9,0.77]
[1731149598690,0.55,3053.2,3051.9,0.77]
[1731149604714,0.55,3053.2,3051.9,0.77]
[1731149604920,3.55,3052.9,3051.9,0.77]
[1731149605277,6.82557,3052.9,3051.9,0.77]
[1731149605482,0.55,3052.7,3051.9,0.77]
[1731149607341,3.55,3052.5,3050.2,0.69528598]
[1731149607495,3.55,3052.5,3050.3,0.7822]
[1731149608345,3.55,3052.5,3050.3,0.84774235]
[1731149608540,3.55,3052.5,3050.3,0.7822]
[1731149608541,0.55,3052.3,3050.3,0.7822]
[1731149610717,1.3325,3052.3,3050.3,0.7822]
[1731149613246,0.55,3052.3,3050.3,0.7822]
[1731149613414,0.68882028,3052.4,3050.6,0.7822]
[1731149613608,3.65586656,3052.9,3050.8,0.7822]
[1731149614344,3.65586656,3052.9,3050.7,0.41304028]
[1731149614345,0.65586656,3052.9,3051.0,3.7822]
[1731149614671,0.65586656,3052.9,3051.8,0.7822]
[1731149614963,0.7825,3054.2,3052.2,0.7822]
[1731149615159,3.33820283,3054.4,3052.1,3.33820283]
[1731149615160,3.33820283,3054.4,3052.4,0.7822]
[1731149615316,3.33820283,3054.4,3052.1,3.33820283]
[1731149615317,3.33820283,3054.4,3052.6,0.7822]
[1731149615517,3.33820283,3054.4,3052.8,0.7822]
[1731149615964,0.33950563,3054.3,3052.8,0.7822]
[1731149616561,0.65308689,3053.2,3052.8,0.7822]
[1731149620232,0.55,3053.1,3051.3,0.8236]
[1731149621175,3.0,3052.7,3051.3,0.8236]
[1731149621339,0.55,3052.6,3051.3,0.8236]
[1731149621526,0.682579,3052.5,3051.3,0.8236]
[1731149621723,0.55,3052.6,3051.3,0.8236]
[1731149631880,4.3377,3052.3,3051.3,0.8236]
[1731149632254,0.55,3052.1,3051.3,0.8236]
[1731149632780,0.55,3052.1,3051.3,0.7236]
[1731149634148,0.55,3052.4,3051.3,0.7236]
[1731149634377,1.23122094,3052.4,3051.3,0.7236]
[1731149634688,0.55,3052.2,3051.3,0.7236]
[1731149635480,0.55,3052.0,3051.3,0.7236]
[1731149636174,1.23122094,3052.0,3051.3,0.7236]
[1731149636353,0.55,3051.8,3051.3,0.7236]
[1731149636750,0.55,3051.9,3051.3,0.7236]
[1731149636951,1.3377,3051.9,3049.9,0.7813]
[1731149637189,0.20189209,3051.8,3050.1,0.7813]
[1731149637391,1.23122094,3051.7,3050.1,0.7813]
[1731149637608,0.55,3051.5,3050.1,0.7813]
[1731149637990,1.23122094,3051.5,3050.1,0.7813]
[1731149638470,0.55,3051.5,3050.1,0.7813]
[1731149638670,0.55,3051.6,3050.1,0.7813]
[1731149638989,1.09549444,3051.6,3050.3,0.7813]
[1731149639568,1.09549444,3051.6,3050.5,0.7813]
[1731149641769,0.55,3051.7,3050.5,0.7813]
[1731149642002,0.55,3051.1,3050.5,0.7813]
[1731149642710,0.55,3051.4,3050.5,0.7813]
[1731149652941,0.68122094,3051.7,3050.5,0.7813]
[1731149652942,1.23122094,3051.7,3050.5,0.7813]
[1731149653101,0.55,3051.5,3050.5,0.7813]
[1731149653756,3.55,3051.5,3050.5,0.7813]
[1731149659260,0.4443113,3051.6,3050.5,0.7813]
[1731149659565,0.20189209,3051.8,3050.5,0.7813]
[1731149659776,3.0,3052.1,3050.5,0.7813]
[1731149660675,0.55,3052.0,3050.5,0.7813]
[1731149661178,3.55,3051.8,3050.5,0.7813]
[1731149664355,4.23122094,3051.8,3050.5,0.7813]
[1731149665205,5.25305235,3051.8,3050.5,0.7813]
[1731149665497,0.55,3051.6,3050.5,0.7813]
[1731149666274,4.23122094,3051.6,3050.5,0.7813]
[1731149666475,1.23122094,3051.6,3050.5,0.7813]
[1731149666716,4.23122094,3051.6,3050.5,0.7813]
[1731149667282,0.55,3051.4,3050.5,0.7813]
[1731149668295,0.48926606,3051.4,3050.5,0.7813]
[1731149668629,0.55,3051.3,3050.5,0.7813]
[1731149679967,3.0,3051.2,3050.5,0.7813]
[1731149680127,0.55,3051.1,3050.5,0.7813]
[1731149686120,0.55,3050.8,3050.5,0.7813]
[1731149686251,0.355,3050.7,3050.5,0.7813]
[1731149688588,0.355,3050.7,3049.1,3.0]
[1731149688787,0.355,3050.7,3049.0,3.05648816]
[1731149688788,3.55,3050.6,3050.2,0.8263]
[1731149689089,1.23122094,3050.3,3050.2,0.8263]
[1731149689455,1.23624957,3050.3,3050.2,0.8263]
[1731149689650,0.55,3050.3,3050.2,0.8263]
[1731149689867,1.14342733,3050.3,3050.2,0.8263]
[1731149690305,1.82949122,3050.3,3050.2,0.8263]
[1731149690982,0.55,3050.2,3049.1,0.8263]
[1731149691182,0.68599556,3050.0,3049.1,0.8263]
[1731149691398,1.23599556,3050.0,3049.1,0.8263]
[1731149693084,1.23599556,3050.1,3049.1,0.8263]
[1731149693921,0.55,3050.1,3049.1,0.8263]
[1731149694084,3.0,3050.2,3049.1,0.8263]
[1731149694085,0.55,3050.2,3049.1,0.8263]
[1731149695099,2.71421568,3049.8,3049.1,0.8263]
[1731149695305,3.55,3049.7,3049.1,0.8263]
[1731149701601,0.55,3049.8,3049.1,0.8263]
[1731149702225,1.47844468,3050.0,3049.1,0.8263]
[1731149702226,3.64934468,3050.0,3049.1,0.8263]
[1731149702429,0.18294229,3050.1,3049.1,0.8263]
[1731149702600,0.46061892,3050.0,3049.1,0.8263]
[1731149702789,0.18294229,3050.1,3049.1,0.8263]
[1731149703500,0.55,3050.0,3049.1,0.8263]
[1731149704792,1.02541874,3050.5,3049.1,0.8263]
[1731149704793,0.68361249,3050.6,3049.1,0.8263]
[1731149705004,0.8291,3050.9,3049.3,0.8263]
[1731149705005,1.51271249,3050.9,3049.3,0.8263]
[1731149705239,1.51271249,3050.9,3049.2,0.06558275]
[1731149705240,0.52523469,3050.8,3049.2,0.8263]
[1731149705438,0.52523469,3050.8,3049.4,0.8263]
[1731149706301,2.71421568,3050.7,3049.4,0.8263]
[1731149707106,3.0,3050.6,3049.4,0.8263]
[1731149707441,0.57142157,3050.5,3049.4,0.8263]
[1731149710105,2.71421568,3050.1,3049.4,0.8263]
[1731149710334,3.0,3050.0,3049.4,0.8263]
[1731149714826,3.68361249,3050.0,3049.4,0.8263]
[1731149715354,4.48311249,3050.0,3048.6,0.7505]
[1731149715554,1.32339531,3049.9,3048.6,0.7505]
[1731149718665,0.63978282,3049.9,3048.6,0.7505]
[1731149719561,1.32339531,3049.9,3048.6,0.7505]
[1731149720278,0.63978282,3049.9,3048.6,0.7505]
[1731149720581,0.43233953,3049.8,3048.6,0.7505]
[1731149726676,0.63978282,3049.9,3048.6,0.7505]
[1731149727139,0.68361249,3050.1,3048.6,0.7505]
[1731149727554,0.68361249,3050.0,3048.6,0.7505]
[1731149730270,0.68361249,3049.9,3048.6,0.7505]
[1731149730473,0.68361249,3050.0,3048.7,0.06559315]
[1731149730679,0.68361249,3050.0,3048.8,0.8269]
[1731149730887,0.68361249,3050.2,3049.2,0.8269]
[1731149731089,0.68361249,3050.5,3049.3,0.89247943]
[1731149731292,0.68361249,3050.6,3049.3,0.89247943]
[1731149731462,1.02541874,3050.8,3049.3,0.89247943]
[1731149731463,0.68361249,3050.7,3049.5,0.8269]
[1731149731664,0.37336671,3050.8,3049.4,2.71421568]
[1731149731665,0.68361249,3050.8,3049.7,0.8269]
[1731149732071,0.68361249,3050.9,3049.7,0.8269]
[1731149732482,0.68361249,3050.9,3049.9,0.8269]
[1731149734585,1.11627818,3050.9,3049.9,0.8269]
[1731149737296,0.43266569,3050.9,3049.9,0.8269]
[1731149739623,0.68361249,3051.0,3049.9,0.8269]
[1731149740007,0.68361249,3051.1,3049.9,0.8269]
[1731149740628,0.68361249,3051.1,3050.0,0.8269]
[1731149740835,0.68361249,3051.2,3050.0,0.8269]
[1731149741000,0.68361249,3051.3,3050.0,0.8269]
[1731149741202,0.68361249,3051.4,3050.0,0.8269]
[1731149741426,1.05544663,3051.4,3050.0,0.8269]
[1731149741936,0.68361249,3051.4,3050.2,0.8269]
[1731149742138,1.02541874,3051.6,3050.3,0.89246006]
[1731149742139,0.68361249,3051.6,3050.3,0.89246006]
[1731149742503,0.33048201,3051.7,3050.3,0.89246006]
[1731149746412,0.33048201,3051.7,3050.3,0.8269]
[1731149746614,3.0,3051.3,3050.3,0.8269]
[1731149746915,3.64722157,3051.3,3050.3,0.8269]
[1731149748773,0.64722157,3051.3,3050.3,0.8269]
[1731149748969,3.0,3051.6,3050.3,0.8269]
[1731149752478,3.0,3051.6,3050.3,0.8924599]
[1731149752778,0.33048201,3051.7,3050.3,0.8924599]
[1731149753276,0.33048201,3051.7,3050.3,0.8269]
[1731149755439,1.25280724,3051.5,3050.3,0.8269]
[1731149756253,1.25280724,3051.1,3050.4,0.769]
[1731149761453,1.25280724,3051.3,3050.4,0.769]
[1731149761659,1.25280724,3051.5,3050.4,0.769]
[1731149763069,3.33048201,3051.7,3050.4,0.769]
[1731149763070,0.33048201,3051.7,3050.4,0.769]
[1731149763246,1.93530349,3051.8,3050.6,0.769]
[1731149763586,0.68249625,3051.9,3050.6,0.769]
[1731149765744,0.64036906,3051.8,3050.6,0.769]
[1731149766188,0.64036906,3051.8,3050.7,0.81905966]
[1731149766559,0.68249625,3052.1,3050.8,0.7535]
[1731149766876,0.68249625,3052.1,3050.7,2.77944322]
[1731149766877,0.68249625,3052.4,3051.0,0.7535]
[1731149767057,0.68249625,3052.5,3051.0,0.7535]
[1731149767264,0.68249625,3052.5,3051.0,0.81904377]
[1731149767666,0.65273654,3052.1,3051.0,0.81904377]
[1731149767843,0.65273654,3052.1,3051.0,0.7535]
[1731149768046,4.45419625,3052.6,3051.0,0.7535]
[1731149768247,0.56599173,3052.5,3051.0,0.7535]
[1731149768505,0.56599173,3052.5,3051.0,0.81904376]
[1731149768705,6.27987529,3052.5,3051.0,0.7535]
[1731149768985,6.27987529,3052.5,3051.0,0.81904633]
[1731149768986,6.96237154,3052.5,3051.0,0.81904633]
[1731149769285,0.64120456,3052.3,3051.0,0.81904633]
[1731149769999,0.64120456,3052.3,3051.1,0.81903602]
[1731149770194,0.64120456,3052.3,3051.3,0.7535]
[1731149770492,0.8695428,3053.0,3051.5,0.7535]
[1731149770676,0.8695428,3053.0,3051.7,0.7535]
[1731149770877,0.18704655,3053.0,3051.7,0.7535]
[1731149771190,3.39637981,3053.1,3051.7,0.7535]
[1731149771355,4.12467611,3053.0,3051.7,0.7535]
[1731149771550,0.44217986,3053.0,3051.7,0.7535]
[1731149772589,0.66042029,3052.4,3051.7,0.7535]
[1731149793651,0.66042029,3052.4,3051.8,0.06553074]
[1731149793852,0.66042029,3052.4,3051.8,0.8209]
[1731149794040,0.66042029,3052.4,3051.5,2.71388356]
[1731149794041,0.66042029,3052.4,3051.9,0.88642511]
[1731149795430,0.66042029,3052.4,3051.9,0.8209]
[1731149798977,4.47032029,3052.4,3051.9,0.8209]
[1731149799148,0.78667001,3052.3,3050.8,0.8209]
[1731149799341,0.66042029,3052.4,3051.0,0.8209]
[1731149799540,1.34291654,3052.4,3051.0,0.8209]
[1731149800400,1.34291654,3052.4,3051.0,0.8864442]
[1731149800677,1.34291654,3052.4,3051.0,0.8209]
[1731149801440,0.66042029,3052.4,3051.0,0.8209]
[1731149801639,0.66042029,3052.4,3051.2,0.8209]
[1731149802578,1.34291654,3052.4,3051.2,0.8209]
[1731149802980,1.34291654,3052.4,3051.4,0.8209]
[1731149804689,3.0,3052.2,3051.4,0.8209]
[1731149804891,0.68249625,3052.1,3051.4,0.8209]
[1731149805061,0.4707915,3052.0,3051.4,0.8209]
[1731149805463,1.15328775,3052.0,3051.4,0.8209]
[1731149807491,0.68249625,3051.9,3051.4,0.8209]
[1731149810475,0.68249625,3051.8,3051.4,0.8209]
[1731149811761,1.02541874,3051.9,3051.4,0.8209]
[1731149811762,0.68249625,3051.9,3051.4,0.8209]
[1731149811981,0.68249625,3051.8,3051.4,0.8209]
[1731149812902,1.15328775,3051.8,3051.4,0.8209]
[1731149813106,0.68249625,3051.5,3051.4,0.8209]
[1731149813461,0.68550622,3051.5,3050.3,0.7677]
[1731149813771,0.68550622,3051.4,3050.3,0.7677]
[1731149814182,0.68550622,3051.4,3050.4,0.83325575]
[1731149814886,0.68550622,3051.5,3050.4,0.83325575]
[1731149815710,0.68550622,3051.5,3050.4,0.7677]
[1731149818489,0.68550622,3051.4,3050.4,0.7677]
[1731149818808,0.68550622,3051.5,3050.4,0.7677]
[1731149819105,0.68550622,3051.4,3050.4,0.7677]
[1731149819495,0.68550622,3051.5,3050.4,0.7677]
[1731149819802,0.66361352,3051.6,3050.6,0.7677]
[1731149819803,0.68550622,3051.6,3050.6,0.7677]
[1731149821374,1.28094787,3051.6,3050.6,0.7677]
[1731149821581,0.68550622,3051.5,3050.6,0.7677]
[1731149821889,0.68550622,3051.6,3050.6,0.7677]
[1731149822203,1.45820622,3051.8,3050.6,0.7677]
[1731149822388,2.14347339,3051.8,3050.6,0.7677]
[1731149823111,0.68550622,3051.7,3050.6,0.7677]
[1731149823409,2.14347339,3051.8,3050.6,0.7677]
[1731149823581,1.37077339,3051.8,3050.6,0.7677]
[1731149825587,0.68550622,3051.7,3050.6,0.7677]